bitfinex-derivatives/quotes_BTCF0:USTF0_20241210
["timestamp","ask_amount","ask_price","bid_price","bid_amount"]
[1733864748543,0.051728,96600.0,96599.0,0.412529]
[1733864748856,0.052728,96600.0,96599.0,0.412529]
[1733864749143,0.051728,96600.0,96599.0,0.412529]
[1733864749344,0.051728,96600.0,96599.0,0.3608]
[1733864749734,0.051726,96604.0,96602.0,0.051727]
[1733864749938,0.051726,96604.0,96603.0,0.051726]
[1733864750338,0.10291054,96609.0,96603.0,0.051726]
[1733864750537,0.36144,96616.0,96599.0,0.3608]
[1733864750538,0.36144,96616.0,96607.0,0.3608]
[1733864750745,0.3608,96616.0,96615.0,0.05172]
[1733864751049,0.051718,96619.0,96618.0,0.051718]
[1733864752645,0.051718,96619.0,96618.0,0.052718]
[1733864752646,0.052718,96619.0,96618.0,0.052718]
[1733864754151,0.052718,96619.0,96618.0,0.06237403]
[1733864754152,0.001,96619.0,96618.0,0.06237403]
[1733864756552,0.00064,96632.0,96621.0,0.051717]
[1733864756846,0.1851532,96659.0,96618.0,0.36237403]
[1733864756847,0.051713,96628.0,96619.0,0.051718]
[1733864757051,0.09258172,96630.0,96618.0,0.001]
[1733864757247,0.051718,96620.0,96619.0,0.051718]
[1733864758049,0.09258172,96621.0,96620.0,0.051717]
[1733864758251,0.20582108,96631.0,96621.0,0.051716]
[1733864758252,0.051716,96622.0,96621.0,0.051716]
[1733864758643,0.12343491,96627.0,96626.0,0.051714]
[1733864758845,0.051714,96627.0,96626.0,0.051714]
[1733864759147,0.17514891,96627.0,96626.0,0.051714]
[1733864759347,0.051714,96627.0,96626.0,0.051714]
[1733864760554,0.051714,96627.0,96626.0,0.052714]
[1733864761557,0.051714,96627.0,96626.0,0.001]
[1733864762043,0.051714,96627.0,96622.0,0.051716]
[1733864762044,0.051716,96623.0,96622.0,0.051716]
[1733864763156,0.17551456,96623.0,96622.0,0.052716]
[1733864763345,0.051716,96623.0,96622.0,0.052716]
[1733864763548,0.17551456,96623.0,96622.0,0.052716]
[1733864764656,0.051716,96623.0,96622.0,0.052716]
[1733864765041,0.17551456,96623.0,96622.0,0.052716]
[1733864765548,0.051716,96623.0,96622.0,0.052716]
[1733864766155,0.17551456,96623.0,96622.0,0.052716]
[1733864766746,0.12379856,96623.0,96622.0,0.052716]
[1733864766947,0.09284827,96625.0,96622.0,0.001]
[1733864767148,0.12379856,96645.0,96624.0,0.3608]
[1733864767356,0.12379856,96652.0,96646.0,0.051703]
[1733864767548,0.12379856,96655.0,96646.0,0.051703]
[1733864767749,0.12379856,96657.0,96646.0,0.051703]
[1733864767947,0.12379856,96663.0,96646.0,0.06107315]
[1733864768153,0.12379856,96665.0,96664.0,0.051694]
[1733864768354,0.2267091,96670.0,96659.0,0.3608]
[1733864768858,0.10291054,96670.0,96659.0,0.3608]
[1733864769156,0.10291054,96670.0,96669.0,0.051691]
[1733864769360,0.051689,96673.0,96667.0,0.3608]
[1733864770949,0.051689,96673.0,96672.0,0.051689]
[1733864771374,0.10291054,96677.0,96676.0,0.051687]
[1733864771548,0.10291054,96677.0,96669.0,0.001]
[1733864771549,0.40091708,96680.0,96669.0,0.001]
[1733864771748,0.45214262,96680.0,96677.0,0.051686]
[1733864771955,0.051686,96679.0,96677.0,0.051686]
[1733864772851,0.051686,96679.0,96677.0,0.052686]
[1733864773054,0.00155208,96680.0,96679.0,0.051686]
[1733864773955,0.10291054,96690.0,96689.0,0.05168]
[1733864774149,0.10291054,96699.0,96697.0,0.051676]
[1733864774354,0.10291054,96699.0,96689.0,0.3608]
[1733864774355,0.46152,96700.0,96699.0,0.051675]
[1733864774356,0.46144,96700.0,96699.0,0.051675]
[1733864774555,0.1,96700.0,96699.0,0.051675]
[1733864775160,0.02090366,96729.0,96699.0,0.051675]
[1733864775161,0.00988566,96730.0,96729.0,0.051659]
[1733864775360,0.053,96741.0,96729.0,0.35808018]
[1733864775361,0.10291054,96740.0,96729.0,0.35808018]
[1733864775665,0.10291054,96740.0,96726.0,0.3608]
[1733864775850,0.10291054,96740.0,96715.0,0.3608]
[1733864775851,0.3608,96735.0,96715.0,0.3608]
[1733864776048,0.10291054,96733.0,96715.0,0.3608]
[1733864776353,0.10291054,96725.0,96715.0,0.3608]
[1733864776969,0.15457154,96725.0,96715.0,0.3608]
[1733864777253,0.10291054,96725.0,96709.0,0.00155076]
[1733864777453,0.051669,96711.0,96709.0,0.00155076]
[1733864777659,0.4123,96710.0,96709.0,0.00155076]
[1733864778262,0.4123,96710.0,96690.0,0.3608]
[1733864778449,0.10291054,96700.0,96690.0,0.3608]
[1733864778651,0.4123,96710.0,96690.0,0.3608]
[1733864778652,0.051676,96697.0,96690.0,0.3608]
[1733864779260,0.10291054,96700.0,96691.0,0.051679]
[1733864779561,0.51521054,96710.0,96700.0,0.051674]
[1733864780550,0.56688054,96710.0,96700.0,0.051674]
[1733864781061,0.51521054,96710.0,96700.0,0.052674]
[1733864781862,0.051671,96708.0,96700.0,0.052674]
[1733864782058,0.051671,96708.0,96700.0,0.051674]
[1733864782354,0.051671,96708.0,96700.0,0.052674]
[1733864782555,0.51585054,96710.0,96700.0,0.001]
[1733864782867,0.412474,96701.0,96700.0,0.001]
[1733864783651,0.051676,96697.0,96690.0,0.3608]
[1733864783949,0.3608,96701.0,96690.0,0.3608]
[1733864784158,0.051671,96706.0,96691.0,0.051679]
[1733864784465,0.051671,96706.0,96700.0,0.001]
[1733864784962,0.051671,96706.0,96690.0,0.3608]
[1733864785159,0.10291054,96700.0,96690.0,0.3608]
[1733864785357,0.10291054,96700.0,96698.0,0.051675]
[1733864785548,0.051676,96697.0,96690.0,0.412479]
[1733864787055,0.56755954,96710.0,96690.0,0.3608]
[1733864787253,0.56755954,96710.0,96708.0,0.05167]
[1733864787254,0.46371054,96710.0,96708.0,0.05167]
[1733864787461,0.051668,96712.0,96708.0,0.05167]
[1733864787657,0.15457454,96720.0,96700.0,0.3608]
[1733864787865,0.10291054,96710.0,96709.0,0.051669]
[1733864788160,0.10291054,96710.0,96701.0,0.0539]
[1733864788161,0.051666,96716.0,96710.0,0.051668]
[1733864789258,0.051669,96709.0,96708.0,0.001]
[1733864789964,0.3608,96710.0,96709.0,0.001]
[1733864790265,0.412469,96710.0,96709.0,0.001]
[1733864790462,0.412469,96710.0,96693.0,0.051677]
[1733864790463,0.3608,96710.0,96693.0,0.051677]
[1733864790659,0.05167,96709.0,96708.0,0.001]
[1733864791061,0.051674,96702.0,96694.0,0.051677]
[1733864791269,0.051675,96700.0,96694.0,0.051677]
[1733864792462,0.10291054,96704.0,96702.0,0.051673]
[1733864792659,0.003,96709.0,96702.0,0.051673]
[1733864792974,0.051671,96707.0,96702.0,0.051673]
[1733864793164,0.003,96709.0,96702.0,0.051673]
[1733864793364,0.003,96709.0,96708.0,0.001]
[1733864793365,0.05467,96709.0,96708.0,0.001]
[1733864793879,0.051671,96706.0,96702.0,0.052673]
[1733864794067,0.051672,96705.0,96702.0,0.052673]
[1733864794264,0.051672,96705.0,96703.0,0.0497]
[1733864794465,0.36144,96710.0,96703.0,0.0497]
[1733864794665,0.36144,96710.0,96706.0,0.051671]
[1733864794666,0.3608,96710.0,96706.0,0.051671]
[1733864794870,0.3608,96710.0,96703.0,0.0497]
[1733864794871,0.3608,96710.0,96704.0,0.0522]
[1733864795069,0.003,96709.0,96707.0,0.05167]
[1733864796861,0.003,96710.0,96707.0,0.05167]
[1733864797063,0.003,96710.0,96708.0,0.05167]
[1733864797467,0.051664,96719.0,96706.0,0.001]
[1733864797667,0.051664,96719.0,96716.0,0.3608]
[1733864798479,0.12315648,96726.0,96716.0,0.3608]
[1733864798866,0.051663,96722.0,96716.0,0.3608]
[1733864799067,0.051663,96722.0,96720.0,0.051664]
[1733864800967,0.055663,96722.0,96720.0,0.051664]
[1733864801578,0.055663,96722.0,96720.0,0.052664]
[1733864802865,0.12315648,96721.0,96720.0,0.001]
[1733864803065,0.41104903,96721.0,96711.0,0.00954289]
[1733864803273,0.5669901,96712.0,96711.0,0.00954289]
[1733864803466,0.46271703,96712.0,96711.0,0.00954289]
[1733864803673,0.64745048,96712.0,96694.0,0.051678]
[1733864803872,0.12367574,96701.0,96692.0,0.3608]
[1733864804070,0.54553345,96712.0,96701.0,0.051674]
[1733864804071,0.12367574,96702.0,96701.0,0.051674]
[1733864804277,0.12367574,96709.0,96708.0,0.051671]
[1733864804476,0.12367574,96710.0,96708.0,0.051671]
[1733864804778,0.05167,96710.0,96708.0,0.051671]
[1733864804979,0.051672,96706.0,96703.0,0.051673]
[1733864805175,0.12367574,96710.0,96700.0,0.3608]
[1733864805176,0.051672,96705.0,96704.0,0.051672]
[1733864806078,0.12367574,96709.0,96700.0,0.3608]
[1733864806277,0.12367574,96709.0,96706.0,0.051671]
[1733864806278,0.12367574,96707.0,96706.0,0.051671]
[1733864806579,0.12367574,96708.0,96706.0,0.051671]
[1733864806768,0.17534574,96708.0,96701.0,0.3608]
[1733864806973,0.005,96710.0,96709.0,0.05167]
[1733864806974,0.002,96710.0,96709.0,0.05167]
[1733864807275,0.12367574,96716.0,96715.0,0.051666]
[1733864807479,0.12367574,96718.0,96710.0,0.0985]
[1733864807682,0.12367574,96721.0,96717.0,0.3608]
[1733864807869,0.12367574,96721.0,96720.0,0.051664]
[1733864808167,0.051662,96724.0,96717.0,0.3608]
[1733864808168,0.12367574,96722.0,96721.0,0.051663]
[1733864808372,0.12367574,96723.0,96722.0,0.051663]
[1733864808572,0.15612114,96730.0,96722.0,0.0610786]
[1733864808573,0.12367574,96726.0,96722.0,0.0610786]
[1733864808770,0.12367574,96727.0,96726.0,0.051661]
[1733864809177,0.15612114,96730.0,96727.0,0.05166]
[1733864809379,0.0532106,96730.0,96717.0,0.3608]
[1733864809572,0.12367371,96728.0,96718.0,0.06104061]
[1733864809773,0.12367371,96727.0,96726.0,0.05166]
[1733864810180,0.004,96727.0,96720.0,0.001]
[1733864810374,0.004,96727.0,96726.0,0.051661]
[1733864811280,0.005,96727.0,96726.0,0.052661]
[1733864812783,0.001,96727.0,96726.0,0.052661]
[1733864812980,0.005,96727.0,96726.0,0.052661]
[1733864813582,0.001,96727.0,96726.0,0.052661]
[1733864813778,0.005,96727.0,96726.0,0.067571]
[1733864815086,0.05666,96727.0,96726.0,0.067571]
[1733864816181,0.005,96727.0,96726.0,0.428371]
[1733864816580,0.12367371,96736.0,96735.0,0.051656]
[1733864816779,0.12367371,96736.0,96726.0,0.428371]
[1733864817084,0.22658425,96736.0,96735.0,0.051656]
[1733864817289,0.051654,96738.0,96737.0,0.051655]
[1733864819292,0.051654,96738.0,96737.0,0.001]
[1733864820384,0.11171759,96738.0,96726.0,0.01491]
[1733864820685,0.11171759,96738.0,96717.0,0.3608]
[1733864820686,0.051665,96718.0,96717.0,0.3608]
[1733864820877,0.051665,96718.0,96707.0,0.00979701]
[1733864821184,0.0496,96717.0,96708.0,0.0610897]
[1733864821392,0.0496,96717.0,96706.0,0.00155115]
[1733864821393,0.051671,96707.0,96706.0,0.00155115]
[1733864821582,0.051671,96707.0,96706.0,0.01149582]
[1733864821791,0.051671,96707.0,96706.0,0.06316982]
[1733864822086,0.051671,96707.0,96706.0,0.00155115]
[1733864822384,0.17531948,96707.0,96706.0,0.00155115]
[1733864822692,0.051671,96707.0,96706.0,0.00155115]
[1733864822883,0.052671,96707.0,96706.0,0.00155115]
[1733864823082,0.052671,96707.0,96706.0,0.05322315]
[1733864823288,0.001,96707.0,96706.0,0.05322315]
[1733864823485,0.052671,96707.0,96706.0,0.05422315]
[1733864826185,0.001,96707.0,96706.0,0.05422315]
[1733864826581,0.23639245,96729.0,96706.0,0.05422315]
[1733864826582,0.12371032,96723.0,96716.0,0.051666]
[1733864826784,0.12371032,96728.0,96722.0,0.7216]
[1733864826989,0.12371032,96729.0,96728.0,0.051659]
[1733864827487,0.051657,96733.0,96722.0,0.7216]
[1733864827488,0.12371032,96730.0,96729.0,0.051659]
[1733864827881,0.25746827,96740.0,96729.0,0.051659]
[1733864827882,0.12371032,96733.0,96729.0,0.051659]
[1733864828087,0.12371032,96734.0,96733.0,0.051657]
[1733864828284,0.12371032,96736.0,96734.0,0.051656]
[1733864828584,0.10291054,96740.0,96734.0,0.051656]
[1733864828585,0.10291054,96740.0,96739.0,0.051654]
[1733864828794,0.12367935,96744.0,96743.0,0.051652]
[1733864828982,0.05165,96746.0,96743.0,0.3608]
[1733864829178,0.05165,96746.0,96745.0,0.05165]
[1733864830200,0.05165,96746.0,96701.0,0.17363523]
[1733864830382,0.05165,96746.0,96692.0,0.4876138]
[1733864830383,0.05167,96709.0,96699.0,0.00961592]
[1733864830582,0.773275,96700.0,96671.0,0.36571035]
[1733864830797,0.3608,96675.0,96673.0,0.051689]
[1733864830980,0.3608,96675.0,96674.0,0.10245678]
[1733864832597,0.3608,96681.0,96680.0,0.051686]
[1733864832782,0.3608,96681.0,96680.0,0.11223412]
[1733864833587,0.051685,96680.0,96679.0,0.051686]
[1733864833888,0.051685,96680.0,96674.0,0.05036]
[1733864833889,0.3608,96681.0,96674.0,0.04536]
[1733864834093,0.3608,96681.0,96675.0,0.06053727]
[1733864834287,0.3608,96681.0,96674.0,0.04536]
[1733864834288,0.3608,96681.0,96676.0,0.06053727]
[1733864834595,0.3608,96681.0,96680.0,0.051685]
[1733864834787,0.3608,96681.0,96680.0,0.056685]
[1733864835491,0.3608,96681.0,96680.0,0.051685]
[1733864835492,0.3618,96681.0,96680.0,0.051685]
[1733864835998,0.3618,96681.0,96680.0,0.054685]
[1733864836297,0.412485,96681.0,96680.0,0.008]
[1733864836798,0.412485,96681.0,96680.0,0.005]
[1733864837586,0.352485,96681.0,96680.0,0.005]
[1733864837993,0.051686,96679.0,96678.0,0.051686]
[1733864838696,0.3018,96681.0,96675.0,0.00996604]
[1733864838697,0.051688,96676.0,96675.0,0.06165404]
[1733864838889,0.051688,96676.0,96675.0,0.051688]
[1733864840193,0.051688,96676.0,96675.0,0.05364722]
[1733864840497,0.3008,96681.0,96680.0,0.051685]
[1733864841291,0.3008,96681.0,96680.0,0.05364422]
[1733864841492,0.352485,96681.0,96680.0,0.05364422]
[1733864842195,0.352485,96681.0,96680.0,0.05558039]
[1733864842402,0.3008,96681.0,96680.0,0.05558039]
[1733864842602,0.3008,96681.0,96680.0,0.05758039]
[1733864843697,0.3008,96681.0,96680.0,0.05951658]
[1733864844399,0.36144,96692.0,96680.0,0.05951658]
[1733864844605,0.3608,96692.0,96691.0,0.051679]
[1733864844787,0.3608,96692.0,96691.0,0.05751058]
[1733864844991,0.0522,96708.0,96691.0,0.05751058]
[1733864844992,0.05167,96708.0,96691.0,0.04719158]
[1733864845195,0.12365568,96710.0,96691.0,0.04719158]
[1733864845196,0.051671,96707.0,96706.0,0.05167]
[1733864845397,0.051671,96707.0,96692.0,0.0546]
[1733864845398,0.412471,96707.0,96692.0,0.0546]
[1733864845700,0.3608,96695.0,96694.0,0.051678]
[1733864845891,0.3608,96695.0,96694.0,0.05750958]
[1733864846602,0.3608,96707.0,96706.0,0.051671]
[1733864847208,0.36144,96715.0,96706.0,0.051671]
[1733864847403,0.12365568,96719.0,96707.0,0.051671]
[1733864847601,0.35355039,96710.0,96709.0,0.05167]
[1733864848089,0.35355039,96710.0,96709.0,0.05304704]
[1733864849197,0.35655039,96710.0,96709.0,0.05304704]
[1733864849394,0.35655039,96710.0,96709.0,0.05404704]
[1733864855904,0.30655039,96710.0,96709.0,0.11455399]
[1733864856103,0.003,96710.0,96709.0,0.11455399]
[1733864857505,0.3608,96725.0,96709.0,0.00237704]
[1733864857701,0.3608,96725.0,96724.0,0.051662]
[1733864858206,0.3608,96731.0,96730.0,0.051659]
[1733864858207,0.36144,96731.0,96730.0,0.051659]
[1733864858600,0.3608,96731.0,96730.0,0.051659]
[1733864859196,0.3608,96731.0,96730.0,0.05303604]
[1733864859603,0.3668,96731.0,96730.0,0.05503604]
[1733864861898,0.3608,96731.0,96730.0,0.05403604]
[1733864862111,0.3628,96731.0,96730.0,0.06422646]
[1733864862609,0.002,96731.0,96730.0,0.42502646]
[1733864863205,0.002,96731.0,96730.0,0.06422646]
[1733864865913,0.002,96731.0,96730.0,0.01256746]
[1733864866205,0.002,96731.0,96711.0,0.051669]
[1733864866206,0.051659,96730.0,96711.0,0.051669]
[1733864866424,0.051667,96715.0,96711.0,0.051669]
[1733864866713,0.051668,96712.0,96711.0,0.051669]
[1733864866910,0.12342613,96727.0,96710.0,0.00155097]
[1733864866911,0.3608,96721.0,96720.0,0.051664]
[1733864867412,0.05166,96727.0,96722.0,0.051662]
[1733864867601,0.3608,96724.0,96710.0,0.36864569]
[1733864867801,0.10261883,96720.0,96719.0,0.051664]
[1733864868011,0.413102,96724.0,96722.0,0.051663]
[1733864868209,0.412462,96724.0,96722.0,0.051663]
[1733864868413,0.051662,96723.0,96722.0,0.051663]
[1733864869107,0.3608,96724.0,96710.0,0.37064569]
[1733864869304,0.3608,96724.0,96723.0,0.051662]
[1733864869508,0.412462,96724.0,96723.0,0.051662]
[1733864871418,0.3618,96724.0,96723.0,0.051662]
[1733864871603,0.3628,96724.0,96723.0,0.052662]
[1733864873422,0.3628,96724.0,96723.0,0.0603029]
[1733864874620,0.48622613,96724.0,96723.0,0.0603029]
[1733864875324,0.3628,96724.0,96723.0,0.0603029]
[1733864876509,0.48622613,96724.0,96723.0,0.0603029]
[1733864877916,0.3628,96724.0,96723.0,0.0603029]
[1733864878219,0.48647823,96724.0,96723.0,0.0603029]
[1733864878424,0.48649832,96724.0,96723.0,0.0603029]
[1733864878923,0.3628,96724.0,96723.0,0.0603029]
[1733864879222,0.3628,96724.0,96723.0,0.001]
[1733864879223,0.414462,96724.0,96723.0,0.001]
[1733864879415,0.051663,96722.0,96699.0,0.00155126]
[1733864879719,0.3608,96707.0,96706.0,0.051671]
[1733864879910,0.3608,96707.0,96706.0,0.11227915]
[1733864880118,0.3608,96707.0,96706.0,0.15363915]
[1733864880713,0.08235888,96714.0,96708.0,0.05167]
[1733864880919,0.3608,96724.0,96723.0,0.051662]
[1733864881120,0.37064286,96724.0,96723.0,0.051662]
[1733864882719,0.3608,96724.0,96723.0,0.051662]
[1733864882927,0.37065128,96724.0,96723.0,0.051662]
[1733864883619,0.3638,96724.0,96723.0,0.1132868]
[1733864883821,0.3736018,96724.0,96723.0,0.052662]
[1733864884129,0.3648,96724.0,96723.0,0.11328697]
[1733864885814,0.3648,96724.0,96723.0,0.12124209]
[1733864886530,0.004,96724.0,96723.0,0.12124209]
[1733864887214,0.45761944,96724.0,96723.0,0.12124209]
[1733864888124,0.3648,96724.0,96723.0,0.11328697]
[1733864891446,0.3648,96724.0,96723.0,0.120262]
[1733864892021,0.37454188,96724.0,96723.0,0.120262]
[1733864892328,0.3648,96724.0,96723.0,0.120262]
[1733864892525,0.37451804,96724.0,96723.0,0.120262]
[1733864892833,0.32451797,96724.0,96723.0,0.05963703]
[1733864893129,0.32451797,96724.0,96723.0,0.1203153]
[1733864893130,0.00971797,96724.0,96723.0,0.1203153]
[1733864894823,0.3608,96732.0,96723.0,0.1203153]
[1733864895023,0.00966581,96731.0,96724.0,0.06067827]
[1733864895219,0.00966581,96730.0,96729.0,0.051659]
[1733864895433,0.00966581,96731.0,96730.0,0.051658]
[1733864895637,0.06097734,96731.0,96730.0,0.06067827]
[1733864895932,0.06097734,96731.0,96729.0,0.00697503]
[1733864895933,0.051658,96730.0,96729.0,0.00697503]
[1733864896135,0.21618279,96730.0,96729.0,0.00697503]
[1733864896529,0.06132381,96730.0,96729.0,0.00697503]
[1733864896723,0.21619255,96730.0,96729.0,0.00697503]
[1733864896926,0.06132381,96730.0,96729.0,0.00697503]
[1733864897133,0.11259182,96730.0,96729.0,0.00697503]
[1733864897322,0.11259182,96730.0,96729.0,0.06069609]
[1733864897523,0.11259182,96730.0,96707.0,0.3069379]
[1733864897524,0.06093382,96730.0,96707.0,0.3069379]
[1733864897730,0.06093382,96730.0,96703.0,0.00155092]
[1733864897731,0.051669,96711.0,96710.0,0.051668]
[1733864897931,0.21624697,96711.0,96710.0,0.11236987]
[1733864898139,0.21621826,96711.0,96710.0,0.11236987]
[1733864898329,0.00970361,96711.0,96710.0,0.11236987]
[1733864900636,0.00970361,96711.0,96710.0,0.11436987]
[1733864900840,0.36144,96716.0,96710.0,0.11436987]
[1733864901033,0.3608,96716.0,96715.0,0.051667]
[1733864901235,0.3608,96716.0,96715.0,0.11236887]
[1733864902836,0.412466,96716.0,96715.0,0.11236887]
[1733864903739,0.412466,96716.0,96715.0,0.11336887]
[1733864904437,0.3608,96716.0,96715.0,0.11336887]
[1733864904635,0.3608,96716.0,96715.0,0.052667]
[1733864904832,0.3702766,96716.0,96715.0,0.052667]
[1733864906136,0.3608,96716.0,96715.0,0.11339939]
[1733864906644,0.10261883,96730.0,96724.0,0.051662]
[1733864906645,0.15484565,96725.0,96724.0,0.051662]
[1733864906842,0.15484565,96727.0,96724.0,0.06073239]
[1733864907043,0.15484565,96727.0,96725.0,0.06073239]
[1733864907343,0.3608,96737.0,96716.0,0.0537]
[1733864907344,0.15484565,96730.0,96726.0,0.06073239]
[1733864907540,0.15484565,96730.0,96729.0,0.051659]
[1733864907842,0.15484565,96733.0,96729.0,0.1123727]
[1733864908043,0.15484565,96733.0,96732.0,0.051658]
[1733864908439,0.15484565,96734.0,96733.0,0.051657]
[1733864908739,0.3608,96737.0,96733.0,0.06069894]
[1733864908937,0.3608,96737.0,96726.0,0.3608]
[1733864908938,0.3608,96737.0,96734.0,0.06069894]
[1733864909139,0.3608,96737.0,96735.0,0.06069894]
[1733864909442,0.3608,96737.0,96736.0,0.11235494]
[1733864909630,0.3608,96737.0,96736.0,0.051656]
[1733864910333,0.3628,96737.0,96736.0,0.051656]
[1733864910733,0.3628,96737.0,96736.0,0.052656]
[1733864911030,0.3608,96737.0,96736.0,0.052656]
[1733864911231,0.3628,96737.0,96736.0,0.052656]
[1733864912441,0.002,96737.0,96736.0,0.11329012]
[1733864912640,0.09477536,96737.0,96736.0,0.11329012]
[1733864912837,0.002,96737.0,96736.0,0.11329012]
[1733864913239,0.09276082,96738.0,96736.0,0.06163412]
[1733864913444,0.0521,96747.0,96746.0,0.05165]
[1733864914942,0.0541,96747.0,96746.0,0.05165]
[1733864915640,0.0541,96747.0,96746.0,0.05265]
[1733864915842,0.105749,96747.0,96746.0,0.05265]
[1733864916645,0.105749,96747.0,96746.0,0.05165]
[1733864916835,0.105749,96747.0,96746.0,0.05265]
[1733864918543,0.051658,96732.0,96731.0,0.051658]
[1733864918932,0.051658,96732.0,96710.0,0.3608]
[1733864918933,0.051661,96726.0,96725.0,0.051661]
[1733864919634,0.051658,96732.0,96731.0,0.052658]
[1733864920343,0.15452087,96735.0,96731.0,0.001]
[1733864920648,0.051654,96739.0,96738.0,0.051654]
[1733864921951,0.051654,96739.0,96734.0,0.0077497]
[1733864921952,0.051653,96741.0,96740.0,0.051653]
[1733864923050,0.052653,96741.0,96740.0,0.051653]
[1733864923435,0.053653,96741.0,96740.0,0.052653]
[1733864926139,0.053653,96741.0,96740.0,0.001]
[1733864926452,0.10520284,96741.0,96728.0,0.051659]
[1733864926651,0.051659,96729.0,96728.0,0.051659]
[1733864927849,0.3608,96734.0,96723.0,0.00831985]
[1733864928065,0.412457,96734.0,96724.0,0.051662]
[1733864928371,0.3608,96734.0,96733.0,0.051657]
[1733864928557,0.41866409,96734.0,96733.0,0.051657]
[1733864928756,0.05786409,96734.0,96733.0,0.051657]
[1733864928982,0.05786409,96734.0,96726.0,0.3608]
[1733864929171,0.05786409,96734.0,96733.0,0.051657]
[1733864929172,0.001,96734.0,96733.0,0.051657]
[1733864929666,0.15555867,96734.0,96733.0,0.051657]
[1733864929868,0.001,96734.0,96733.0,0.051657]
[1733864930171,0.051655,96738.0,96737.0,0.051655]
[1733864930572,0.10867996,96738.0,96737.0,0.051655]
[1733864930971,0.05702496,96738.0,96737.0,0.051655]
[1733864931557,0.05702496,96738.0,96733.0,0.001]
[1733864931558,0.18563954,96743.0,96741.0,0.051653]
[1733864931752,0.05706009,96742.0,96741.0,0.051653]
[1733864932148,0.05706009,96746.0,96727.0,0.051661]
[1733864932367,0.15562284,96738.0,96737.0,0.051655]
[1733864932662,0.001,96738.0,96737.0,0.051655]
[1733864932845,0.15462284,96739.0,96726.0,0.3608]
[1733864933052,0.10261883,96740.0,96739.0,0.051654]
[1733864933355,0.0570633,96740.0,96739.0,0.051654]
[1733864933554,0.0570633,96740.0,96729.0,0.051659]
[1733864933555,0.05706237,96741.0,96730.0,0.1585]
[1733864933855,0.15462673,96747.0,96740.0,0.3608]
[1733864934054,0.18563954,96757.0,96746.0,0.05165]
[1733864934242,0.10261883,96760.0,96746.0,0.05165]
[1733864934243,0.10261883,96760.0,96755.0,0.051645]
[1733864934447,0.10261883,96760.0,96746.0,0.05165]
[1733864934448,0.05705443,96759.0,96751.0,0.3608]
[1733864934651,0.10261883,96760.0,96758.0,0.051644]
[1733864935047,0.0547,96762.0,96757.0,0.3608]
[1733864935246,0.0547,96762.0,96751.0,0.051647]
[1733864935247,0.05562395,96761.0,96751.0,0.051647]
[1733864935448,0.15824278,96761.0,96752.0,0.0605911]
[1733864935657,0.05562395,96760.0,96751.0,0.051647]
[1733864935861,0.05662395,96760.0,96758.0,0.001]
[1733864936061,0.05562395,96759.0,96758.0,0.001]
[1733864936249,0.05562395,96759.0,96751.0,0.05993536]
[1733864936250,0.10261883,96761.0,96755.0,0.3608]
[1733864936467,0.10361883,96761.0,96755.0,0.3608]
[1733864936958,0.002,96760.0,96755.0,0.3608]
[1733864937960,0.002,96760.0,96747.0,0.05165]
[1733864937961,0.051645,96757.0,96747.0,0.05165]
[1733864938158,0.051645,96757.0,96748.0,0.06055115]
[1733864938460,0.002,96760.0,96749.0,0.06055115]
[1733864938668,0.051651,96746.0,96740.0,0.00821757]
[1733864938955,0.3608,96757.0,96741.0,0.42136418]
[1733864938956,0.10261883,96750.0,96741.0,0.42136418]
[1733864939146,0.10261883,96750.0,96742.0,0.06056418]
[1733864939346,0.051649,96749.0,96741.0,0.3608]
[1733864939547,0.051649,96749.0,96742.0,0.06056894]
[1733864939750,0.051649,96749.0,96743.0,0.06056963]
[1733864939950,0.051649,96749.0,96741.0,0.3608]
[1733864940155,0.051649,96749.0,96742.0,0.06056825]
[1733864940350,0.051649,96749.0,96741.0,0.3608]
[1733864940554,0.10261883,96750.0,96742.0,0.06058265]
[1733864940752,0.3608,96746.0,96738.0,0.0099154]
[1733864940958,0.051653,96741.0,96739.0,0.06058861]
[1733864941157,0.17529198,96741.0,96740.0,0.06058861]
[1733864941548,0.051653,96741.0,96740.0,0.06058861]
[1733864941754,0.17529292,96741.0,96740.0,0.06058861]
[1733864941957,0.051653,96741.0,96740.0,0.06058861]
[1733864942158,0.051654,96739.0,96738.0,0.00155042]
[1733864942459,0.051661,96725.0,96722.0,0.051663]
[1733864942664,0.051661,96725.0,96723.0,0.11229962]
[1733864942851,0.051661,96725.0,96724.0,0.06063762]
[1733864944454,0.051672,96705.0,96704.0,0.00155094]
[1733864944761,0.051672,96705.0,96704.0,0.06220795]
[1733864945351,0.051672,96705.0,96704.0,0.00155094]
[1733864945871,0.0611253,96709.0,96704.0,0.00155094]
[1733864945872,0.17655313,96709.0,96707.0,0.051671]
[1733864946160,0.12365313,96710.0,96709.0,0.05167]
[1733864946365,0.17532213,96711.0,96709.0,0.05167]
[1733864947060,0.12365313,96713.0,96711.0,0.051669]
[1733864947260,0.12365313,96718.0,96716.0,0.051666]
[1733864947466,0.15551883,96721.0,96716.0,0.051666]
[1733864947467,0.20718183,96721.0,96716.0,0.051666]
[1733864947656,0.20718183,96721.0,96710.0,0.3608]
[1733864947857,0.12356967,96714.0,96710.0,0.3608]
[1733864948057,0.12356967,96715.0,96709.0,0.004]
[1733864948365,0.12356967,96716.0,96709.0,0.004]
[1733864948560,0.12356967,96715.0,96713.0,0.051668]
[1733864948761,0.051667,96714.0,96709.0,0.004]
[1733864949363,0.12356967,96711.0,96709.0,0.055669]
[1733864949571,0.12356967,96713.0,96711.0,0.051669]
[1733864950363,0.051667,96714.0,96711.0,0.051669]
[1733864950364,0.17523667,96714.0,96711.0,0.051669]
[1733864950568,0.17523667,96714.0,96712.0,0.051668]
[1733864950569,0.12356967,96714.0,96712.0,0.051668]
[1733864951365,0.12356967,96715.0,96712.0,0.051668]
[1733864952262,0.17523467,96717.0,96712.0,0.051668]